[Event "72nd RUS-ch Higher League 2019"]
[Site "Yaroslavl"]
[Date "2019.07.01"]
[Round "5.3"]
[White "Iljiushenok, Ilia"]
[Black "Khismatullin, Denis"]
[Result "1/2-1/2"]
[ECO "B94"]
[WhiteElo "2549"]
[BlackElo "2618"]
[Annotator "ChessBase"]
[PlyCount "126"]
[EventDate "2019.06.27"]
[EventType "swiss"]
[EventCountry "RUS"]
[SourceTitle "playchess.com"]
[Source "ChessBase"]
[SourceQuality "1"]
[TimeControl "40/5400+30:1800+30"]

1. e4 {[%emt 0:00:00]} c5 {[%emt 0:01:12]} 2. Nf3 {[%emt 0:00:00]} d6 {[%emt 0:00:05]} 3. d4 {[%emt 0:00:00]} cxd4 {[%emt 0:00:05]} 4. Nxd4 {[%emt 0:00:00]} Nf6 {[%emt 0:00:05]} 5. Nc3 {[%emt 0:00:02]} a6 {[%emt 0:00:04]} 6. Bg5 {[%emt 0:00:11]} Nbd7 {[%emt 0:00:06]} 7. Bc4 {[%emt 0:00:07]} Qb6 {[%emt 0:00:06]} 8. Bb3 {[%emt 0:00:05]} e6 {[%emt 0:01:23]} 9. Qd2 {[%emt 0:00:05]} Nc5 {[%emt 0:03:58]} 10. Bxf6 {[%emt 0:02:10]} gxf6 {[%emt 0:00:06]} 11. O-O-O {[%emt 0:00:47]} Bd7 {[%emt 0:08:21]} 12. Kb1 {[%emt 0:13:49]} O-O-O {[%emt 0:03:24]} 13. f4 {[%emt 0:03:28]} Kb8 {[%emt 0:03:15]} 14. f5 {[%emt 0:05:14]} Rc8 {[%emt 0:08:46]} 15. Rhf1 {[%emt 0:02:23]} Qd8 {[%emt 0:03:17]} 16. Qe3 {[%emt 0:06:16]} h5 {[%emt 0:03:14]} 17. a3 {[%emt 0:07:29]} Nxb3 {[%emt 0:05:31]} 18. Nxb3 {[%emt 0:00:59]} Be7 {[%emt 0:01:27]} 19. Rd2 {[%emt 0:03:21]} h4 {[%emt 0:12:25]} 20. Qh3 {[%emt 0:09:17]} Rh5 {[%emt 0:14:41]} 21. Nd4 {[%emt 0:22:20]} Rc5 {[%emt 0:08:04]} 22. Rfd1 {[%emt 0:03:26]} Bc8 {[%emt 0:04:22]} 23. Rd3 {[%emt 0:02:46]} Qe8 {[%emt 0:10:46]} 24. g4 {[%emt 0:02:11]} Rh8 {[%emt 0:01:37]} 25. Qf3 {[%emt 0:00:35]} Bd7 {[%emt 0:01:01]} 26. h3 {[%emt 0:00:10]} Qd8 {[%emt 0:01:32]} 27. Nde2 {[%emt 0:00:22]} Qf8 {[%emt 0:01:55]} 28. Nf4 {[%emt 0:05:24]} Qh6 {[%emt 0:00:25]} 29. Nce2 {[%emt 0:03:05]} Rhc8 {[%emt 0:00:49]} 30. R3d2 {[%emt 0:01:29]} Ba4 {[%emt 0:01:58]} 31. Nc3 {[%emt 0:01:35]} Bd7 {[%emt 0:00:31]} 32. Nce2 {[%emt 0:01:51]} Ba4 {[%emt 0:00:06]} 33. Nc3 {[%emt 0:02:17]} Bd7 {[%emt 0:00:05]} 34. Nce2 {[%emt 0:00:50]} Qg5 {[%emt 0:01:12]} 35. Nd3 {[%emt 0:00:56]} Rc4 {[%emt 0:00:37]} 36. Ndf4 {[%emt 0:00:28]} R4c5 {[%emt 0:00:41]} 37. Nd3 {[%emt 0:00:02]} Rc4 {[%emt 0:00:19]} 38. Ndf4 {[%emt 0:00:11]} Bf8 {[%emt 0:00:51]} 39. Nc3 {[%emt 0:01:41]} R8c6 {[%emt 0:00:29]} 40. Nfe2 {[%emt 0:00:00]} Rc7 {[%emt 0:00:00]} 41. Rd4 {[%emt 0:05:17]} R4c5 {[%emt 0:04:49]} 42. R4d3 {[%emt 0:01:32]} Be7 {[%emt 0:10:47]} 43. Qf2 {[%emt 0:00:36]} Qh6 {[%emt 0:00:48]} 44. Nf4 {[%emt 0:02:25]} Rc4 {[%emt 0:04:10]} 45. Ng2 {[%emt 0:04:23]} Qf8 {[%emt 0:03:04]} 46. Nxh4 {[%emt 0:01:00]} Qh6 {[%emt 0:04:53]} 47. Ng2 {[%emt 0:00:27]} Rxc3 {[%emt 0:00:31]} 48. bxc3 {[%emt 0:03:58]} Bb5 {[%emt 0:00:19]} 49. Rf3 {[%emt 0:00:51]} Rc6 {[%emt 0:02:56]} 50. Nf4 {[%emt 0:01:21]} Bc4 {[%emt 0:00:35]} 51. Qe3 {[%emt 0:01:33]} Bd8 {[%emt 0:01:31]} 52. Nd5 {[%emt 0:02:21]} Qf8 {[%emt 0:00:59]} 53. fxe6 {[%emt 0:00:47]} fxe6 {[%emt 0:00:20]} 54. Nxf6 {[%emt 0:04:20]} Bxf6 {[%emt 0:00:48]} 55. g5 {[%emt 0:00:08]} d5 {[%emt 0:00:06]} 56. Kb2 {[%emt 0:00:13]} Bxc3+ {[%emt 0:01:54]} 57. Qxc3 {[%emt 0:00:03]} Qd6 {[%emt 0:00:33]} 58. Qh8+ {[%emt 0:02:24]} Rc8 {[%emt 0:00:24]} 59. Qg7 {[%emt 0:00:12]} Be2 {[%emt 0:00:33]} 60. Rb3 {[%emt 0:01:38]} Rc7 {[%emt 0:00:15]} 61. Qh8+ {[%emt 0:04:01]} Rc8 {[%emt 0:00:05]} 62. Qg7 {[%emt 0:00:08]} Rc7 {[%emt 0:00:08]} 63. Qh8+ {[%emt 0:00:06]} Rc8 {[%emt 0:00:06]} 1/2-1/2

[Event "72nd RUS-ch Higher League 2019"]
[Site "Yaroslavl"]
[Date "2019.07.01"]
[Round "5.9"]
[White "Popov, Ivan"]
[Black "Zvjaginsev, Vadim"]
[Result "1/2-1/2"]
[ECO "B31"]
[WhiteElo "2599"]
[BlackElo "2644"]
[Annotator "ChessBase"]
[PlyCount "84"]
[EventDate "2019.06.27"]
[EventType "swiss"]
[EventCountry "RUS"]
[SourceTitle "playchess.com"]
[Source "ChessBase"]
[SourceQuality "1"]
[TimeControl "40/5400+30:1800+30"]

1. e4 {[%emt 0:00:00]} c5 {[%emt 0:00:00]} 2. Nf3 {[%emt 0:00:00]} Nc6 {[%emt 0:00:00]} 3. Bb5 {[%emt 0:00:05]} g6 {[%emt 0:00:00]} 4. Bxc6 {[%emt 0:00:32]} bxc6 {[%emt 0:00:09]} 5. O-O {[%emt 0:00:43]} Bg7 {[%emt 0:00:16]} 6. Re1 {[%emt 0:01:05]} Rb8 {[%emt 0:00:24]} 7. c3 {[%emt 0:09:43]} Nf6 {[%emt 0:00:57]} 8. e5 {[%emt 0:05:57]} Nd5 {[%emt 0:00:26]} 9. c4 {[%emt 0:00:14]} Nc7 {[%emt 0:02:33]} 10. d4 {[%emt 0:02:05]} cxd4 {[%emt 0:06:15]} 11. Qxd4 {[%emt 0:00:22]} Ne6 {[%emt 0:07:39]} 12. Qxa7 {[%emt 0:03:07]} Qb6 {[%emt 0:13:08]} 13. Qxb6 {[%emt 0:05:34]} Rxb6 {[%emt 0:00:29]} 14. b3 {[%emt 0:02:27]} O-O {[%emt 0:04:39]} 15. Nc3 {[%emt 0:02:50]} Ra6 {[%emt 0:04:43]} 16. Bb2 {[%emt 0:14:00]} Bb7 {[%emt 0:08:31]} 17. Rad1 {[%emt 0:04:40]} Rd8 {[%emt 0:00:24]} 18. Nd4 {[%emt 0:04:41]} Nf8 {[%emt 0:07:38]} 19. Na4 {[%emt 0:04:55]} Ra5 {[%emt 0:01:38]} 20. Nc2 {[%emt 0:10:06]} Rda8 {[%emt 0:08:08]} 21. Bc3 {[%emt 0:06:34]} Rxa4 {[%emt 0:00:08]} 22. bxa4 {[%emt 0:00:06]} Rxa4 {[%emt 0:00:09]} 23. Ne3 {[%emt 0:00:27]} Ba6 {[%emt 0:02:44]} 24. f4 {[%emt 0:07:46]} h5 {[%emt 0:02:18]} 25. g3 {[%emt 0:01:13]} Kh7 {[%emt 0:05:06]} 26. Rd2 {[%emt 0:00:59]} c5 {[%emt 0:01:21]} 27. Rd5 {[%emt 0:03:07]} Bxc4 {[%emt 0:02:06]} 28. Rxc5 {[%emt 0:00:31]} Bxa2 {[%emt 0:00:57]} 29. Ra5 {[%emt 0:00:19]} Rxa5 {[%emt 0:00:42]} 30. Bxa5 {[%emt 0:00:04]} f6 {[%emt 0:01:23]} 31. exf6 {[%emt 0:01:42]} Bxf6 {[%emt 0:00:18]} 32. Rd1 {[%emt 0:01:11]} Kg7 {[%emt 0:03:53]} 33. Nd5 {[%emt 0:02:44]} Kf7 {[%emt 0:02:38]} 34. Nxf6 {[%emt 0:00:54]} Kxf6 {[%emt 0:00:09]} 35. Bc3+ {[%emt 0:00:36]} Kf7 {[%emt 0:00:25]} 36. Kf2 {[%emt 0:02:29]} Be6 {[%emt 0:01:05]} 37. Ra1 {[%emt 0:01:34]} d6 {[%emt 0:00:51]} 38. Ra7 {[%emt 0:01:05]} Bh3 {[%emt 0:00:44]} 39. Ke3 {[%emt 0:01:04]} Nd7 {[%emt 0:01:00]} 40. Bb4 {[%emt 0:00:00]} Bf5 {[%emt 0:00:00]} 41. Kd4 {[%emt 0:01:44]} Bg4 {[%emt 0:03:36]} 42. Kd5 {[%emt 0:03:09]} Bf3+ {[%emt 0:00:07] Ke4} 1/2-1/2

[Event "72nd RUS-ch Higher League 2019"]
[Site "Yaroslavl"]
[Date "2019.07.01"]
[Round "5.10"]
[White "Frolyanov, Dmitry"]
[Black "Lysyj, Igor"]
[Result "1/2-1/2"]
[ECO "C78"]
[WhiteElo "2538"]
[BlackElo "2623"]
[Annotator "ChessBase"]
[PlyCount "80"]
[EventDate "2019.06.27"]
[EventType "swiss"]
[EventCountry "RUS"]
[SourceTitle "playchess.com"]
[Source "ChessBase"]
[SourceQuality "1"]
[TimeControl "40/5400+30:1800+30"]

1. e4 {[%emt 0:00:00]} e5 {[%emt 0:00:00]} 2. Nf3 {[%emt 0:00:00]} Nc6 {[%emt 0:00:00]} 3. Bb5 {[%emt 0:00:00]} a6 {[%emt 0:00:00]} 4. Ba4 {[%emt 0:00:00]} Nf6 {[%emt 0:00:00]} 5. O-O {[%emt 0:00:09]} Bc5 {[%emt 0:00:00]} 6. c3 {[%emt 0:01:27]} O-O {[%emt 0:00:27]} 7. d4 {[%emt 0:01:19]} Ba7 {[%emt 0:00:30]} 8. dxe5 {[%emt 0:09:32]} Nxe4 {[%emt 0:00:29]} 9. Bc2 {[%emt 0:07:00]} d5 {[%emt 0:00:39]} 10. exd6 {[%emt 0:01:25]} Nxd6 {[%emt 0:00:30]} 11. Bg5 {[%emt 0:00:59]} f6 {[%emt 0:00:23]} 12. Bf4 {[%emt 0:01:15]} g5 {[%emt 0:00:19]} 13. Bg3 {[%emt 0:16:23]} f5 {[%emt 0:06:15]} 14. Qd3 {[%emt 0:12:08]} Qf6 {[%emt 0:11:37]} 15. Nbd2 {[%emt 0:15:15]} g4 {[%emt 0:10:38]} 16. Ne1 {[%emt 0:04:13]} Rd8 {[%emt 0:06:57]} 17. Bf4 {[%emt 0:02:16]} Ne5 {[%emt 0:03:51]} 18. Qg3 {[%emt 0:02:14]} Ng6 {[%emt 0:01:17]} 19. Bb3+ {[%emt 0:03:38]} Kg7 {[%emt 0:13:53]} 20. Nd3 {[%emt 0:03:08]} Ne4 {[%emt 0:04:02]} 21. Nxe4 {[%emt 0:00:11]} fxe4 {[%emt 0:00:04]} 22. Be5 {[%emt 0:00:21]} Nxe5 {[%emt 0:00:08]} 23. Nxe5 {[%emt 0:00:05]} h5 {[%emt 0:00:05]} 24. h4 {[%emt 0:03:41]} c6 {[%emt 0:22:42]} 25. Rae1 {[%emt 0:00:23]} Bf5 {[%emt 0:02:23]} 26. Nf7 {[%emt 0:02:44]} Rd3 {[%emt 0:01:34]} 27. Qf4 {[%emt 0:03:25]} g3 {[%emt 0:01:34]} 28. Ne5 {[%emt 0:00:42]} gxf2+ {[%emt 0:02:37]} 29. Rxf2 {[%emt 0:00:05]} Bxf2+ {[%emt 0:06:06]} 30. Kxf2 {[%emt 0:00:06]} Rdd8 {[%emt 0:02:32]} 31. Kg1 {[%emt 0:00:37]} Re8 {[%emt 0:00:18]} 32. Qg3+ {[%emt 0:00:55]} Bg6 {[%emt 0:01:29]} 33. Rf1 {[%emt 0:04:24]} Rxe5 {[%emt 0:00:07]} 34. Rxf6 {[%emt 0:00:05]} Kxf6 {[%emt 0:00:04]} 35. Qf4+ {[%emt 0:00:03]} Rf5 {[%emt 0:00:21]} 36. Qd6+ {[%emt 0:00:06]} Kg7 {[%emt 0:00:08]} 37. Qd7+ {[%emt 0:00:13]} Kh6 {[%emt 0:00:39]} 38. Qd2+ {[%emt 0:00:09]} Kg7 {[%emt 0:00:55]} 39. Qd7+ {[%emt 0:00:09]} Kh6 {[%emt 0:00:22]} 40. Qd2+ {[%emt 0:00:00]} Kg7 {[%emt 0:00:00]} 1/2-1/2

[Event "72nd RUS-ch Higher League 2019"]
[Site "Yaroslavl"]
[Date "2019.07.01"]
[Round "5.11"]
[White "Grachev, Boris"]
[Black "Belozerov, Andrei"]
[Result "1/2-1/2"]
[ECO "A05"]
[WhiteElo "2621"]
[BlackElo "2533"]
[Annotator "ChessBase"]
[PlyCount "81"]
[EventDate "2019.06.27"]
[EventType "swiss"]
[EventCountry "RUS"]
[SourceTitle "playchess.com"]
[Source "ChessBase"]
[SourceQuality "1"]
[TimeControl "40/5400+30:1800+30"]

1. Nf3 {[%emt 0:00:00]} Nf6 {[%emt 0:00:00]} 2. c4 {[%emt 0:00:06]} g6 {[%emt 0:00:00]} 3. Nc3 {[%emt 0:01:40]} Bg7 {[%emt 0:00:10]} 4. g3 {[%emt 0:00:06]} O-O {[%emt 0:00:26]} 5. Bg2 {[%emt 0:00:08]} d6 {[%emt 0:00:54]} 6. O-O {[%emt 0:01:20]} e5 {[%emt 0:00:17]} 7. d4 {[%emt 0:00:28]} Nbd7 {[%emt 0:02:53]} 8. Qc2 {[%emt 0:00:44]} c6 {[%emt 0:03:20]} 9. Rd1 {[%emt 0:00:47]} Qe7 {[%emt 0:06:19]} 10. e4 {[%emt 0:07:52]} exd4 {[%emt 0:02:41]} 11. Nxd4 {[%emt 0:00:06]} Re8 {[%emt 0:00:18]} 12. Bf4 {[%emt 0:33:11]} Ne5 {[%emt 0:05:46]} 13. b3 {[%emt 0:01:20]} a6 {[%emt 0:01:07]} 14. h3 {[%emt 0:01:58]} Rb8 {[%emt 0:07:17]} 15. Qd2 {[%emt 0:11:01]} c5 {[%emt 0:11:49]} 16. Nde2 {[%emt 0:01:31]} b5 {[%emt 0:00:10]} 17. cxb5 {[%emt 0:02:22]} axb5 {[%emt 0:04:34]} 18. Qxd6 {[%emt 0:06:13]} Qxd6 {[%emt 0:03:34]} 19. Rxd6 {[%emt 0:00:07]} b4 {[%emt 0:02:15]} 20. Na4 {[%emt 0:00:33]} Nh5 {[%emt 0:00:27]} 21. Rad1 {[%emt 0:03:28]} c4 {[%emt 0:04:09]} 22. Be3 {[%emt 0:02:18]} Be6 {[%emt 0:05:21]} 23. Nd4 {[%emt 0:03:43]} Bf8 {[%emt 0:02:40]} 24. Ra6 {[%emt 0:00:16]} Rbd8 {[%emt 0:03:59]} 25. Rc1 {[%emt 0:03:29]} Nd3 {[%emt 0:02:52]} 26. Nxe6 {[%emt 0:05:17]} Rxe6 {[%emt 0:01:00]} 27. Rxe6 {[%emt 0:00:13]} Nxc1 {[%emt 0:00:32]} 28. Rc6 {[%emt 0:00:07]} cxb3 {[%emt 0:05:14]} 29. axb3 {[%emt 0:00:28]} Nxb3 {[%emt 0:00:12]} 30. Nb6 {[%emt 0:02:45]} Nd4 {[%emt 0:03:18]} 31. Bxd4 {[%emt 0:03:18]} Rxd4 {[%emt 0:00:16]} 32. Nd5 {[%emt 0:01:32]} b3 {[%emt 0:02:53]} 33. Rb6 {[%emt 0:00:39]} Rd1+ {[%emt 0:03:51]} 34. Kh2 {[%emt 0:01:03]} Bc5 {[%emt 0:01:52]} 35. Rxb3 {[%emt 0:02:57]} Bxf2 {[%emt 0:00:27]} 36. h4 {[%emt 0:00:08]} Bd4 {[%emt 0:01:14]} 37. Bf3 {[%emt 0:01:26]} Rd2+ {[%emt 0:00:18]} 38. Kh3 {[%emt 0:00:06]} Nf6 {[%emt 0:01:03]} 39. Nxf6+ {[%emt 0:00:57]} Bxf6 {[%emt 0:00:04]} 40. h5 {[%emt 0:00:00]} Kg7 {[%emt 0:00:00]} 41. hxg6 {[%emt 0:00:35]} 1/2-1/2

[Event "72nd RUS-ch Higher League 2019"]
[Site "Yaroslavl"]
[Date "2019.07.01"]
[Round "5.12"]
[White "Rakhmanov, Aleksandr"]
[Black "Bocharov, Ivan"]
[Result "1/2-1/2"]
[ECO "D12"]
[WhiteElo "2615"]
[BlackElo "2559"]
[Annotator "ChessBase"]
[PlyCount "66"]
[EventDate "2019.06.27"]
[EventType "swiss"]
[EventCountry "RUS"]
[SourceTitle "playchess.com"]
[Source "ChessBase"]
[SourceQuality "1"]
[TimeControl "40/5400+30:1800+30"]

1. Nf3 {[%emt 0:00:00]} d5 {[%emt 0:00:00]} 2. d4 {[%emt 0:00:00]} Nf6 {[%emt 0:00:00]} 3. c4 {[%emt 0:00:00]} c6 {[%emt 0:00:00]} 4. e3 {[%emt 0:01:11]} Bf5 {[%emt 0:00:23]} 5. Nc3 {[%emt 0:00:36]} a6 {[%emt 0:00:15]} 6. Ne5 {[%emt 0:00:51]} Nbd7 {[%emt 0:00:27]} 7. Qb3 {[%emt 0:00:19]} Qc7 {[%emt 0:00:33]} 8. cxd5 {[%emt 0:00:47]} Nxe5 {[%emt 0:00:38]} 9. dxe5 {[%emt 0:00:08]} Nxd5 {[%emt 0:00:02]} 10. Nxd5 {[%emt 0:00:10]} cxd5 {[%emt 0:00:02]} 11. Bd2 {[%emt 0:00:20]} e6 {[%emt 0:01:44]} 12. Rc1 {[%emt 0:03:17]} Qd7 {[%emt 0:00:50]} 13. Be2 {[%emt 0:00:53]} Be7 {[%emt 0:00:29]} 14. Ba5 {[%emt 0:00:21]} Rc8 {[%emt 0:00:49]} 15. Rxc8+ {[%emt 0:01:09]} Qxc8 {[%emt 0:00:08]} 16. Kd2 {[%emt 0:00:17]} d4 {[%emt 0:06:50]} 17. Rc1 {[%emt 0:19:38]} dxe3+ {[%emt 0:00:33]} 18. fxe3 {[%emt 0:03:26]} Qd7+ {[%emt 0:18:23]} 19. Ke1 {[%emt 0:03:04]} O-O {[%emt 0:00:16]} 20. Rc7 {[%emt 0:14:54]} Qe8 21. Bb4 {[%emt 0:00:11]} Bxb4+ {[%emt 0:02:11]} 22. Qxb4 {[%emt 0:00:30]} b5 {[%emt 0:02:48]} 23. Qd4 {[%emt 0:11:08]} Qb8 {[%emt 0:08:40]} 24. Rd7 b4 25. e4 {[%emt 0:09:44]} Bg6 {[%emt 0:00:40]} 26. h4 {[%emt 0:00:42]} Qc8 {[%emt 0:01:38]} 27. Bf3 {[%emt 0:01:36]} Qc1+ {[%emt 0:02:50]} 28. Kf2 {[%emt 0:00:13]} h5 {[%emt 0:01:39]} 29. Kg3 {[%emt 0:07:20]} Qe1+ {[%emt 0:01:14]} 30. Kh3 {[%emt 0:02:09]} Qh1+ {[%emt 0:00:02]} 31. Kg3 {[%emt 0:00:04]} Qe1+ {[%emt 0:00:05]} 32. Kh3 {[%emt 0:00:02]} Qh1+ {[%emt 0:00:05]} 33. Kg3 {[%emt 0:00:03]} Qe1+ {[%emt 0:00:04]} 1/2-1/2

[Event "72nd RUS-ch Higher League 2019"]
[Site "Yaroslavl"]
[Date "2019.07.01"]
[Round "5.15"]
[White "Alekseev, Evgeny"]
[Black "Kardashevskiy, Evgeny"]
[Result "1-0"]
[ECO "A05"]
[WhiteElo "2645"]
[BlackElo "2429"]
[Annotator "ChessBase"]
[PlyCount "103"]
[EventDate "2019.06.27"]
[EventType "swiss"]
[EventCountry "RUS"]
[SourceTitle "playchess.com"]
[Source "ChessBase"]
[SourceQuality "1"]
[TimeControl "40/5400+30:1800+30"]

1. Nf3 {[%emt 0:03:21]} Nf6 {[%emt 0:00:00]} 2. g3 {[%emt 0:03:31]} e6 {[%emt 0:00:36]} 3. Bg2 {[%emt 0:00:39]} d5 {[%emt 0:02:01]} 4. O-O {[%emt 0:03:03]} c5 {[%emt 0:00:38]} 5. c4 {[%emt 0:02:12]} d4 {[%emt 0:00:54]} 6. e3 {[%emt 0:01:42]} Nc6 {[%emt 0:00:36]} 7. exd4 {[%emt 0:01:18]} cxd4 {[%emt 0:00:26]} 8. d3 {[%emt 0:00:04]} h6 {[%emt 0:00:32]} 9. Na3 {[%emt 0:01:38]} Bxa3 {[%emt 0:04:07]} 10. bxa3 {[%emt 0:00:15]} O-O {[%emt 0:00:17]} 11. Re1 {[%emt 0:11:20]} Re8 {[%emt 0:08:57]} 12. Bf4 {[%emt 0:16:58]} Nd7 {[%emt 0:13:20]} 13. Bd6 {[%emt 0:02:18]} Nb6 {[%emt 0:08:40]} 14. c5 {[%emt 0:02:08]} Nd5 {[%emt 0:01:55]} 15. Qa4 {[%emt 0:09:28]} Bd7 {[%emt 0:08:01]} 16. Nxd4 {[%emt 0:01:00]} Nxd4 {[%emt 0:00:52]} 17. Qxd4 {[%emt 0:00:03]} Bc6 {[%emt 0:01:15]} 18. Rab1 {[%emt 0:13:33]} b6 {[%emt 0:12:52]} 19. Rec1 {[%emt 0:07:05]} Qd7 {[%emt 0:03:15]} 20. Be5 {[%emt 0:05:06]} f6 {[%emt 0:07:15]} 21. Bd6 {[%emt 0:00:14]} Rac8 {[%emt 0:00:38]} 22. Qg4 {[%emt 0:03:18]} bxc5 {[%emt 0:09:18]} 23. Bxc5 {[%emt 0:00:04]} Ne7 {[%emt 0:03:41]} 24. Qd4 {[%emt 0:02:20]} Qxd4 {[%emt 0:01:12]} 25. Bxd4 {[%emt 0:00:01]} Bxg2 {[%emt 0:00:37]} 26. Kxg2 {[%emt 0:01:18]} a6 {[%emt 0:03:13]} 27. a4 {[%emt 0:04:51]} Rxc1 {[%emt 0:02:36]} 28. Rxc1 {[%emt 0:00:04]} Rd8 {[%emt 0:00:06]} 29. Bc5 {[%emt 0:00:44]} Rc8 {[%emt 0:00:29]} 30. d4 {[%emt 0:00:53]} Nc6 {[%emt 0:01:12]} 31. Rb1 {[%emt 0:00:33]} Rb8 {[%emt 0:00:53]} 32. Rb3 {[%emt 0:00:04]} Kf7 {[%emt 0:00:54]} 33. Kf3 {[%emt 0:00:06]} h5 {[%emt 0:01:23]} 34. h3 {[%emt 0:03:34]} g5 {[%emt 0:01:34]} 35. Ke4 {[%emt 0:00:29]} f5+ {[%emt 0:00:57]} 36. Kd3 {[%emt 0:00:18]} Ke8 {[%emt 0:00:58]} 37. Rxb8+ {[%emt 0:02:14]} Nxb8 {[%emt 0:00:04]} 38. d5 {[%emt 0:00:18]} Nd7 {[%emt 0:01:05]} 39. Be3 {[%emt 0:00:26]} Ne5+ {[%emt 0:00:29]} 40. Kc3 {[%emt 0:00:00]} Nf3 {[%emt 0:00:00]} 41. dxe6 {[%emt 0:04:51]} Ke7 {[%emt 0:08:51]} 42. Kb4 {[%emt 0:00:12]} Kxe6 {[%emt 0:00:16]} 43. Ka5 {[%emt 0:00:18]} Kd7 {[%emt 0:02:19]} 44. Kxa6 {[%emt 0:00:09]} Kc8 {[%emt 0:01:00]} 45. Ka7 {[%emt 0:04:51]} h4 {[%emt 0:05:46]} 46. gxh4 {[%emt 0:00:26]} gxh4 {[%emt 0:01:42]} 47. a5 {[%emt 0:01:17]} Ng1 {[%emt 0:02:50]} 48. a6 {[%emt 0:03:48]} Ne2 {[%emt 0:05:35]} 49. Kb6 {[%emt 0:03:22]} Kb8 {[%emt 0:00:20]} 50. f4 {[%emt 0:00:09]} Nc3 {[%emt 0:06:03]} 51. Kc6 {[%emt 0:00:12]} Nxa2 {[%emt 0:00:14]} 52. Bd2 {[%emt 0:00:31]} 1-0

[Event "72nd RUS-ch Higher League 2019"]
[Site "Yaroslavl"]
[Date "2019.07.01"]
[Round "5.16"]
[White "Khanin, Semen"]
[Black "Petrov, Nikita"]
[Result "1/2-1/2"]
[ECO "C65"]
[WhiteElo "2529"]
[BlackElo "2610"]
[Annotator "ChessBase"]
[PlyCount "39"]
[EventDate "2019.06.27"]
[EventType "swiss"]
[EventCountry "RUS"]
[SourceTitle "playchess.com"]
[Source "ChessBase"]
[SourceQuality "1"]
[TimeControl "40/5400+30:1800+30"]

1. e4 {[%emt 0:00:00]} e5 {[%emt 0:00:00]} 2. Nf3 {[%emt 0:00:00]} Nc6 {[%emt 0:00:00]} 3. Bb5 {[%emt 0:00:00]} Nf6 {[%emt 0:00:12]} 4. d3 {[%emt 0:01:01]} Ne7 {[%emt 0:01:02]} 5. Nc3 {[%emt 0:06:23]} c6 {[%emt 0:04:30]} 6. Bc4 {[%emt 0:01:10]} d6 {[%emt 0:01:49]} 7. d4 {[%emt 0:13:13]} exd4 {[%emt 0:01:20]} 8. Qxd4 {[%emt 0:02:41]} Ng6 {[%emt 0:03:06]} 9. Ng5 {[%emt 0:17:21]} Ne5 {[%emt 0:06:33]} 10. Bf4 {[%emt 0:03:14]} Nfg4 {[%emt 0:25:44]} 11. h3 {[%emt 0:14:44]} Qf6 {[%emt 0:06:49]} 12. hxg4 {[%emt 0:00:30]} Qxf4 {[%emt 0:01:03]} 13. Nxh7 {[%emt 0:00:09]} Bxg4 {[%emt 0:06:23]} 14. Be2 {[%emt 0:09:48]} O-O-O {[%emt 0:17:38]} 15. Qxa7 {[%emt 0:09:00]} Bxe2 {[%emt 0:02:25]} 16. Qa8+ {[%emt 0:02:11]} Kc7 {[%emt 0:00:14]} 17. Qa5+ {[%emt 0:00:04]} Kc8 {[%emt 0:00:19]} 18. Qa8+ {[%emt 0:00:29]} Kc7 {[%emt 0:00:05]} 19. Qa5+ {[%emt 0:00:06]} Kc8 {[%emt 0:00:26]} 20. Qa8+ 1/2-1/2

[Event "72nd RUS-ch Higher League 2019"]
[Site "Yaroslavl"]
[Date "2019.07.01"]
[Round "5.17"]
[White "Kokarev, Dmitry"]
[Black "Samojlov, Anton"]
[Result "1-0"]
[ECO "B10"]
[WhiteElo "2609"]
[BlackElo "2350"]
[Annotator "ChessBase"]
[PlyCount "69"]
[EventDate "2019.06.27"]
[EventType "swiss"]
[EventCountry "RUS"]
[SourceTitle "playchess.com"]
[Source "ChessBase"]
[SourceQuality "1"]
[TimeControl "40/5400+30:1800+30"]

1. e4 {[%emt 0:00:00]} c6 {[%emt 0:00:00]} 2. c4 {[%emt 0:01:38]} d5 {[%emt 0:00:07]} 3. cxd5 {[%emt 0:00:08]} cxd5 {[%emt 0:00:08]} 4. exd5 {[%emt 0:00:03]} Nf6 {[%emt 0:00:11]} 5. Qa4+ {[%emt 0:00:07]} Nbd7 {[%emt 0:00:59]} 6. Nc3 {[%emt 0:00:08]} g6 {[%emt 0:00:46]} 7. Nf3 {[%emt 0:00:20]} Bg7 {[%emt 0:00:34]} 8. Bc4 {[%emt 0:00:12]} O-O {[%emt 0:00:25]} 9. d3 {[%emt 0:00:05]} a6 {[%emt 0:06:18]} 10. Qa3 {[%emt 0:00:06]} b6 {[%emt 0:00:18]} 11. O-O {[%emt 0:00:15]} Bb7 {[%emt 0:00:12]} 12. Re1 {[%emt 0:01:02]} Re8 {[%emt 0:01:12]} 13. Ng5 {[%emt 0:04:53]} b5 {[%emt 0:09:47]} 14. Bb3 {[%emt 0:00:24]} Nb6 {[%emt 0:00:20]} 15. d6 {[%emt 0:01:27]} e6 {[%emt 0:00:12]} 16. Nge4 {[%emt 0:06:23]} h6 {[%emt 0:18:50]} 17. Nxf6+ {[%emt 0:11:36]} Qxf6 {[%emt 0:03:02]} 18. Be3 {[%emt 0:00:17]} Nd7 {[%emt 0:01:45]} 19. Rad1 {[%emt 0:07:06]} Qh4 {[%emt 0:13:19]} 20. d4 {[%emt 0:11:36]} Rad8 {[%emt 0:24:28]} 21. f3 {[%emt 0:03:17]} Nf6 {[%emt 0:13:15]} 22. Bf2 {[%emt 0:02:05]} Qg5 {[%emt 0:00:43]} 23. Re5 {[%emt 0:00:55]} Bxf3 {[%emt 0:03:59]} 24. Rxg5 {[%emt 0:00:11]} Bxd1 {[%emt 0:00:01]} 25. Rxg6 {[%emt 0:01:05]} fxg6 {[%emt 0:00:38]} 26. Bxd1 {[%emt 0:00:14]} e5 {[%emt 0:00:57]} 27. dxe5 {[%emt 0:00:38]} Rxe5 {[%emt 0:00:06]} 28. Qxa6 {[%emt 0:00:24]} Kh7 {[%emt 0:00:16]} 29. Bg3 {[%emt 0:03:00]} Rf5 {[%emt 0:00:07]} 30. Bc2 {[%emt 0:02:04]} Rh5 {[%emt 0:01:27]} 31. h3 {[%emt 0:02:24]} b4 {[%emt 0:00:15]} 32. Ne4 {[%emt 0:00:47]} Nd5 {[%emt 0:00:13]} 33. Bd1 {[%emt 0:03:50]} Rf5 {[%emt 0:00:32]} 34. Bg4 {[%emt 0:00:16]} Bd4+ {[%emt 0:01:06]} 35. Bf2 {[%emt 0:00:42]} 1-0